[Event "FIDE WYCC Girls U14 2023"]
[Site "Montesilvano"]
[Date "2023.11.17"]
[Round "5.26"]
[White "Yu, Avery"]
[Black "Jiang, Hanxi"]
[Result "*"]
[ECO "B15"]
[WhiteElo "1861"]
[BlackElo "1575"]
[Annotator "NA"]
[PlyCount "115"]
[EventDate "2023.11.13"]
[EventType "swiss"]
[EventCountry "ITA"]
[SourceTitle "playchess.com"]
[Source "ChessBase"]
[SourceQuality "1"]
[TimeControl "40/5400+30:1800+30"]

1. e4 {[%emt 0:00:01]} c6 {[%emt 0:00:04]} 2. d4 {[%emt 0:00:03]} d5 {[%emt 0:00:03]} 3. Nc3 {[%emt 0:00:04]} dxe4 {[%emt 0:00:03]} 4. Nxe4 {[%emt 0:00:05]} Nf6 {[%emt 0:00:04]} 5. Nxf6+ {[%emt 0:00:05]} exf6 {[%emt 0:00:03]} 6. c3 {[%emt 0:00:04]} Bd6 {[%emt 0:00:04]} 7. Bd3 {[%emt 0:00:06]} O-O {[%emt 0:00:17]} 8. Qc2 {[%emt 0:00:03]} Re8+ {[%emt 0:00:03]} 9. Ne2 {[%emt 0:00:08]} h5 {[%emt 0:00:27]} 10. Be3 {[%emt 0:00:04]} Nd7 {[%emt 0:00:31]} 11. O-O-O {[%emt 0:00:09]} Nf8 {[%emt 0:00:08]} 12. c4 {[%emt 0:00:05]} Be6 {[%emt 0:00:55]} 13. Kb1 {[%emt 0:00:51]} Rc8 {[%emt 0:01:25]} 14. Nc3 {[%emt 0:00:40]} Qa5 {[%emt 0:03:22]} 15. Ne4 {[%emt 0:08:04]} Be7 {[%emt 0:09:40]} 16. Nc5 {[%emt 0:06:18]} Bxc5 {[%emt 0:03:17]} 17. dxc5 {[%emt 0:00:48]} b5 {[%emt 0:05:29]} 18. cxb6 {[%emt 0:01:55]} axb6 {[%emt 0:04:10]} 19. Bd2 {[%emt 0:07:34]} Qa6 {[%emt 0:06:12]} 20. a3 {[%emt 0:24:13]} Nd7 {[%emt 0:14:34]} 21. c5 {[%emt 0:06:35]} Qb7 {[%emt 0:08:05]} 22. cxb6 {[%emt 0:03:18]} Nxb6 {[%emt 0:02:58]} 23. h3 Rb8 {[%emt 0:06:37]} 24. Bc3 {[%emt 0:16:48]} Ra8 {[%emt 0:09:20]} 25. g4 {[%emt 0:04:17]} Na4 {[%emt 0:06:40]} 26. Bb4 {[%emt 0:04:38]} h4 {[%emt 0:05:53]} 27. Rhg1 {[%emt 0:03:56]} c5 {[%emt 0:05:01]} 28. Be4 {[%emt 0:02:06]} Ba2+ {[%emt 0:03:10]} 29. Kxa2 {[%emt 0:00:16]} Rxe4 {[%emt 0:00:43]} 30. Bc3 {[%emt 0:02:12]} Re6 {[%emt 0:02:08]} 31. Rd2 {[%emt 0:02:36]} Rb6 {[%emt 0:00:23]} 32. Rgd1 {[%emt 0:00:40]} Qe7 {[%emt 0:01:20]} 33. Rd7 {[%emt 0:01:53]} Qe6+ {[%emt 0:00:21]} 34. Ka1 {[%emt 0:00:15]} Qe8 {[%emt 0:02:00]} 35. f4 {[%emt 0:05:05]} c4 {[%emt 0:00:36]} 36. Ba5 {[%emt 0:01:35]} Rxb2 {[%emt 0:01:30]} 37. Qxa4 {[%emt 0:00:48]} Qe2 {[%emt 0:00:36]} 38. Rd8+ {[%emt 0:00:01]} Kh7 {[%emt 0:00:37]} 39. R8d2 {[%emt 0:01:01]} Rxd2 {[%emt 0:00:23]} 40. Rxd2 {[%emt 0:00:00]} Qxd2 {[%emt 0:00:00]} 41. Bxd2 {[%emt 0:00:37]} Rxa4 {[%emt 0:00:23]} 42. Kb2 {[%emt 0:00:05]} c3+ {[%emt 0:02:25]} 43. Bxc3 {[%emt 0:00:21]} Rxf4 {[%emt 0:00:06]} 44. Bb4 {[%emt 0:00:26]} Kg6 {[%emt 0:01:53]} 45. Be1 {[%emt 0:00:26]} Rf3 {[%emt 0:00:26]} 46. a4 {[%emt 0:00:28]} f5 {[%emt 0:00:33]} 47. gxf5+ {[%emt 0:01:01]} Rxf5 {[%emt 0:02:27]} 48. a5 {[%emt 0:00:12]} Re5 {[%emt 0:01:20]} 49. Bc3 {[%emt 0:01:15]} Re8 {[%emt 0:00:23]} 50. Kc2 {[%emt 0:00:17]} Kf5 {[%emt 0:00:40]} 51. Bd4 {[%emt 0:01:34]} Ra8 {[%emt 0:00:31]} 52. Bc3 {[%emt 0:00:52]} g5 {[%emt 0:00:38]} 53. Kd2 {[%emt 0:00:13]} Kf4 {[%emt 0:00:25]} 54. Ke2 {[%emt 0:00:14]} Kg3 {[%emt 0:00:06]} 55. Kf1 {[%emt 0:00:21]} Kxh3 {[%emt 0:00:05]} 56. Kg1 {[%emt 0:00:36]} g4 {[%emt 0:00:04]} 57. Kh1 {[%emt 0:00:13]} g3 {[%emt 0:00:06]} 58. Kg1 {[%emt 0:00:12]} *

[Event "FIDE WYCC Girls U14 2023"]
[Site "Montesilvano"]
[Date "2023.11.17"]
[Round "5.27"]
[White "Li Chen, Helena Joana"]
[Black "Alemanova, Yasmina"]
[Result "1/2-1/2"]
[ECO "C11"]
[WhiteElo "1799"]
[BlackElo "1570"]
[Annotator "NA"]
[PlyCount "90"]
[EventDate "2023.11.13"]
[EventType "swiss"]
[EventCountry "ITA"]
[SourceTitle "playchess.com"]
[Source "ChessBase"]
[SourceQuality "1"]
[TimeControl "40/5400+30:1800+30"]

1. e4 {[%emt 0:00:01]} e6 {[%emt 0:00:06]} 2. d4 {[%emt 0:00:06]} d5 {[%emt 0:00:03]} 3. Nc3 {[%emt 0:00:04]} Nf6 {[%emt 0:00:04]} 4. e5 {[%emt 0:00:05]} Nfd7 {[%emt 0:00:04]} 5. f4 {[%emt 0:00:04]} c5 {[%emt 0:00:04]} 6. Nf3 {[%emt 0:00:04]} Nc6 {[%emt 0:00:05]} 7. Ne2 {[%emt 0:00:10]} Be7 {[%emt 0:00:07]} 8. c3 {[%emt 0:00:13]} O-O {[%emt 0:00:06]} 9. a3 {[%emt 0:01:12]} b5 {[%emt 0:00:50]} 10. dxc5 {[%emt 0:02:18]} Nxc5 {[%emt 0:01:10]} 11. Ned4 {[%emt 0:00:20]} Nxd4 {[%emt 0:00:57]} 12. Nxd4 {[%emt 0:00:13]} a6 {[%emt 0:00:37]} 13. Bd3 {[%emt 0:00:18]} Bb7 {[%emt 0:01:02]} 14. O-O {[%emt 0:00:23]} f6 {[%emt 0:00:18]} 15. Bc2 {[%emt 0:04:56]} Qd7 {[%emt 0:10:58]} 16. Qh5 {[%emt 0:01:54]} Ne4 {[%emt 0:00:48]} 17. Be3 {[%emt 0:01:52]} Bc5 {[%emt 0:02:22]} 18. Qh3 {[%emt 0:14:55]} f5 {[%emt 0:10:54]} 19. Bxe4 {[%emt 0:06:27]} fxe4 {[%emt 0:00:09]} 20. Ne2 {[%emt 0:00:30]} Be7 {[%emt 0:00:59]} 21. Kh1 {[%emt 0:03:29]} a5 {[%emt 0:00:18]} 22. b4 {[%emt 0:02:47]} Ra6 {[%emt 0:02:14]} 23. Nd4 {[%emt 0:06:41]} Rfa8 {[%emt 0:06:00]} 24. Rac1 {[%emt 0:02:21]} Rc8 {[%emt 0:01:25]} 25. f5 {[%emt 0:04:42]} exf5 {[%emt 0:00:40]} 26. Rxf5 {[%emt 0:00:19]} Qe8 {[%emt 0:00:43]} 27. Rh5 {[%emt 0:08:07]} h6 {[%emt 0:01:34]} 28. Nf5 {[%emt 0:04:52]} Bf8 {[%emt 0:00:54]} 29. g4 {[%emt 0:08:15]} axb4 {[%emt 0:00:45]} 30. axb4 {[%emt 0:02:10]} Rcc6 {[%emt 0:05:21]} 31. g5 {[%emt 0:03:11]} Kh7 {[%emt 0:02:17]} 32. Nd4 {[%emt 0:03:32]} Bc8 {[%emt 0:00:39]} 33. Qh4 {[%emt 0:00:47]} Rcb6 {[%emt 0:00:18]} 34. gxh6 {[%emt 0:01:02]} g6 {[%emt 0:00:13]} 35. Rg5 {[%emt 0:00:28]} Be7 {[%emt 0:00:14]} 36. Qg3 {[%emt 0:02:01]} Bxg5 {[%emt 0:00:32]} 37. Qxg5 {[%emt 0:00:14]} Rb7 {[%emt 0:00:06]} 38. h4 {[%emt 0:03:06]} Qd7 {[%emt 0:09:18]} 39. e6 {[%emt 0:00:54]} Qe7 {[%emt 0:00:06]} 40. Qxe7+ {[%emt 0:00:00]} Rxe7 {[%emt 0:00:00]} 41. Bg5 {[%emt 0:01:18]} Rexe6 {[%emt 0:05:42]} 42. Nxe6 {[%emt 0:00:13]} Rxe6 {[%emt 0:00:44]} 43. Kg1 {[%emt 0:00:23]} Rc6 {[%emt 0:00:28]} 44. Kf2 {[%emt 0:00:16]} Be6 {[%emt 0:01:11]} 45. Ke3 {[%emt 0:00:56]} Rc4 {[%emt 0:00:11]} 1/2-1/2

[Event "FIDE WYCC Girls U14 2023"]
[Site "Montesilvano"]
[Date "2023.11.17"]
[Round "5.28"]
[White "Derlich, Sarah Sima"]
[Black "Manco, Amaliya"]
[Result "1/2-1/2"]
[ECO "C50"]
[WhiteElo "1745"]
[BlackElo "1538"]
[Annotator "NA"]
[PlyCount "56"]
[EventDate "2023.11.13"]
[EventType "swiss"]
[EventCountry "ITA"]
[SourceTitle "playchess.com"]
[Source "ChessBase"]
[SourceQuality "1"]
[TimeControl "40/5400+30:1800+30"]

1. e4 {[%emt 0:00:03]} e5 {[%emt 0:00:05]} 2. Nf3 {[%emt 0:00:06]} Nc6 {[%emt 0:00:07]} 3. Bc4 {[%emt 0:00:06]} Bc5 {[%emt 0:00:06]} 4. O-O {[%emt 0:00:17]} Nf6 {[%emt 0:00:53]} 5. d3 {[%emt 0:00:16]} d6 {[%emt 0:00:15]} 6. c3 {[%emt 0:00:08]} a6 {[%emt 0:00:04]} 7. Bb3 {[%emt 0:00:07]} Ba7 {[%emt 0:00:57]} 8. h3 {[%emt 0:01:16]} Bd7 {[%emt 0:02:20]} 9. Re1 {[%emt 0:00:58]} h6 {[%emt 0:01:01]} 10. d4 {[%emt 0:00:36]} O-O {[%emt 0:01:01]} 11. Qd3 {[%emt 0:05:58]} Qc8 {[%emt 0:07:49]} 12. Nbd2 {[%emt 0:03:35]} Nh5 {[%emt 0:02:49]} 13. Nf1 {[%emt 0:01:14]} Kh8 {[%emt 0:03:29]} 14. Be3 {[%emt 0:08:09]} g5 {[%emt 0:17:00]} 15. Rad1 {[%emt 0:09:37]} Nf4 {[%emt 0:14:54]} 16. Bxf4 {[%emt 0:02:04]} exf4 {[%emt 0:00:35]} 17. Bc2 {[%emt 0:01:56]} Rg8 {[%emt 0:06:01]} 18. e5 {[%emt 0:07:36]} Rg7 {[%emt 0:00:20]} 19. Qe4 {[%emt 0:21:36]} h5 {[%emt 0:17:16]} 20. d5 {[%emt 0:07:37]} g4 {[%emt 0:15:45]} 21. dxc6 {[%emt 0:19:23]} gxf3 {[%emt 0:02:34]} 22. cxb7 Rxg2+ {[%emt 0:01:07]} 23. Kh1 {[%emt 0:02:39]} Rg1+ {[%emt 0:01:02]} 24. Kh2 {[%emt 0:02:41]} Rg2+ {[%emt 0:01:16]} 25. Kh1 {[%emt 0:00:11]} Rg1+ {[%emt 0:00:20]} 26. Kh2 {[%emt 0:00:59]} Rg2+ {[%emt 0:00:58]} 27. Kh1 {[%emt 0:00:07]} Rg1+ {[%emt 0:00:03]} 28. Kh2 {[%emt 0:00:06]} Rg2+ {[%emt 0:00:06]} 1/2-1/2

[Event "FIDE WYCC Girls U14 2023"]
[Site "Montesilvano"]
[Date "2023.11.17"]
[Round "5.29"]
[White "Suyamin, Bonjoure Fille"]
[Black "Zadrapova, Amalie"]
[Result "1-0"]
[ECO "E97"]
[WhiteElo "1570"]
[BlackElo "1753"]
[Annotator "NA"]
[PlyCount "115"]
[EventDate "2023.11.13"]
[EventType "swiss"]
[EventCountry "ITA"]
[SourceTitle "playchess.com"]
[Source "ChessBase"]
[SourceQuality "1"]
[TimeControl "40/5400+30:1800+30"]

1. d4 {[%emt 0:00:03]} Nf6 {[%emt 0:00:09]} 2. Nf3 {[%emt 0:00:11]} g6 {[%emt 0:00:09]} 3. c4 {[%emt 0:00:19]} Bg7 {[%emt 0:00:05]} 4. Nc3 {[%emt 0:00:52]} O-O {[%emt 0:00:09]} 5. e4 {[%emt 0:01:44]} d6 {[%emt 0:00:08]} 6. Be2 {[%emt 0:00:20]} e5 {[%emt 0:00:18]} 7. O-O {[%emt 0:00:19]} Nc6 {[%emt 0:00:19]} 8. d5 {[%emt 0:00:14]} Ne7 {[%emt 0:00:08]} 9. b4 {[%emt 0:00:27]} Nh5 {[%emt 0:01:57]} 10. a4 {[%emt 0:03:14]} f5 {[%emt 0:04:12]} 11. a5 {[%emt 0:04:30]} Nf6 {[%emt 0:08:09]} 12. Re1 {[%emt 0:23:28]} h6 {[%emt 0:05:14]} 13. Qc2 {[%emt 0:06:44]} g5 {[%emt 0:04:54]} 14. Nd2 {[%emt 0:06:08]} f4 {[%emt 0:02:38]} 15. c5 {[%emt 0:00:24]} Ng6 {[%emt 0:05:46]} 16. Nc4 {[%emt 0:05:17]} Rf7 {[%emt 0:03:11]} 17. cxd6 {[%emt 0:06:16]} cxd6 {[%emt 0:01:09]} 18. Nb5 {[%emt 0:00:45]} Bf8 {[%emt 0:01:28]} 19. Bb2 {[%emt 0:04:54]} g4 {[%emt 0:01:45]} 20. Ra3 {[%emt 0:01:35]} Nh5 {[%emt 0:13:02]} 21. Rc1 {[%emt 0:09:36]} f3 {[%emt 0:05:56]} 22. gxf3 {[%emt 0:06:22]} gxf3 {[%emt 0:01:07]} 23. Bxf3 {[%emt 0:00:38]} Ngf4 {[%emt 0:04:42]} 24. Kh1 {[%emt 0:02:26]} Rg7 {[%emt 0:02:26]} 25. Raa1 {[%emt 0:10:00]} Nf6 {[%emt 0:17:14]} 26. Ne3 {[%emt 0:01:11]} Nh3 {[%emt 0:02:40]} 27. Nf5 {[%emt 0:03:36]} Bxf5 {[%emt 0:00:46]} 28. exf5 {[%emt 0:00:06]} Qc8 {[%emt 0:02:52]} 29. Bg2 {[%emt 0:00:57]} Qxc2 {[%emt 0:00:59]} 30. Rxc2 {[%emt 0:00:07]} Nf4 {[%emt 0:00:23]} 31. Bf3 {[%emt 0:01:15]} N6xd5 {[%emt 0:00:49]} 32. Rd2 {[%emt 0:00:51]} Nxb4 {[%emt 0:00:21]} 33. Nxd6 {[%emt 0:01:01]} Bxd6 {[%emt 0:01:03]} 34. Rxd6 {[%emt 0:00:47]} Nbd3 {[%emt 0:00:35]} 35. Rf1 {[%emt 0:00:42]} Nxb2 {[%emt 0:00:09]} 36. a6 {[%emt 0:00:19]} Rb8 {[%emt 0:01:13]} 37. axb7 {[%emt 0:00:12]} Nc4 {[%emt 0:03:43]} 38. Rc6 {[%emt 0:00:45]} Nb6 {[%emt 0:00:20]} 39. Rxh6 {[%emt 0:00:28]} Kf7 {[%emt 0:04:42]} 40. Rc1 {[%emt 0:00:00]} Nfd5 {[%emt 0:00:00]} 41. Rd1 {[%emt 0:08:49]} Nf6 {[%emt 0:03:52]} 42. Rd6 {[%emt 0:01:15]} Ne8 {[%emt 0:07:25]} 43. Rde6 {[%emt 0:01:17]} Nc7 {[%emt 0:08:18]} 44. Rxe5 {[%emt 0:01:10]} Nd7 {[%emt 0:03:18]} 45. Ra5 {[%emt 0:02:39]} Rbg8 {[%emt 0:03:25]} 46. h4 {[%emt 0:01:42]} Rg1+ {[%emt 0:01:01]} 47. Kh2 {[%emt 0:00:10]} Rf1 {[%emt 0:02:20]} 48. Bh5+ {[%emt 0:06:19]} Ke7 {[%emt 0:01:42]} 49. f3 {[%emt 0:03:38]} a6 {[%emt 0:01:44]} 50. Rc6 {[%emt 0:03:28]} Rf2+ {[%emt 0:02:07]} 51. Kh3 {[%emt 0:00:32]} Rf1 {[%emt 0:00:46]} 52. Bg4 {[%emt 0:02:11]} Nb5 {[%emt 0:01:56]} 53. Rc8 {[%emt 0:00:37]} Rg7 {[%emt 0:00:34]} 54. Rxa6 {[%emt 0:00:58]} Nd6 {[%emt 0:01:21]} 55. f6+ {[%emt 0:00:25]} Kxf6 {[%emt 0:00:14]} 56. Rxd6+ {[%emt 0:00:06]} Ke5 {[%emt 0:00:47]} 57. Rxd7 {[%emt 0:00:13]} Rxd7 {[%emt 0:00:36]} 58. b8=Q+ {[%emt 0:00:29]} 1-0

[Event "FIDE WYCC Girls U14 2023"]
[Site "Montesilvano"]
[Date "2023.11.17"]
[Round "5.30"]
[White "Zeng, Vera"]
[Black "Li, Anna Sofie"]
[Result "0-1"]
[ECO "D14"]
[WhiteElo "1528"]
[BlackElo "1722"]
[Annotator "NA RC"]
[PlyCount "76"]
[EventDate "2023.11.13"]
[EventType "swiss"]
[EventCountry "ITA"]
[SourceTitle "playchess.com"]
[Source "ChessBase"]
[SourceQuality "1"]
[TimeControl "40/5400+30:1800+30"]

1. d4 {[%emt 0:00:03]} d5 {[%emt 0:00:07]} 2. c4 {[%emt 0:00:05]} c6 {[%emt 0:00:04]} 3. cxd5 {[%emt 0:00:07]} cxd5 {[%emt 0:00:07]} 4. Nc3 {[%emt 0:00:08]} Nf6 {[%emt 0:00:06]} 5. Nf3 {[%emt 0:00:07]} Nc6 {[%emt 0:00:41]} 6. Bf4 {[%emt 0:00:12]} Bf5 {[%emt 0:01:18]} 7. e3 {[%emt 0:01:41]} e6 {[%emt 0:04:11]} 8. Rc1 {[%emt 0:01:39]} Bd6 {[%emt 0:02:04]} 9. Qb3 {[%emt 0:01:33]} Rb8 {[%emt 0:07:42]} 10. Bxd6 {[%emt 0:05:32]} Qxd6 {[%emt 0:03:01]} 11. Be2 {[%emt 0:00:47]} O-O {[%emt 0:02:33]} 12. O-O {[%emt 0:00:25]} h6 {[%emt 0:04:13]} 13. a3 {[%emt 0:01:59]} a6 {[%emt 0:01:26]} 14. Na4 {[%emt 0:00:50]} Ne4 {[%emt 0:03:03]} 15. Qb6 {[%emt 0:02:57]} Rfc8 {[%emt 0:06:20]} 16. Nc5 {[%emt 0:06:53]} Nxd4 {[%emt 0:02:46]} 17. Nxd4 {[%emt 0:09:24]} Qxb6 {[%emt 0:00:15]} 18. Nd7 {[%emt 0:00:18]} Qxb2 {[%emt 0:01:27]} 19. Rb1 {[%emt 0:00:17]} Qxa3 {[%emt 0:00:35]} 20. Ra1 {[%emt 0:01:03]} Qd6 {[%emt 0:01:01]} 21. Nxb8 {[%emt 0:00:31]} Rxb8 {[%emt 0:00:11]} 22. Rfc1 {[%emt 0:02:38]} Qd7 {[%emt 0:02:38]} 23. Nxf5 {[%emt 0:01:50]} exf5 {[%emt 0:00:14]} 24. f3 {[%emt 0:00:28]} Nd6 {[%emt 0:00:39]} 25. Rd1 {[%emt 0:00:19]} Qe6 {[%emt 0:00:57]} 26. Bf1 {[%emt 0:04:49]} Qxe3+ {[%emt 0:00:04]} 27. Kh1 {[%emt 0:00:09]} Qc5 {[%emt 0:01:52]} 28. Rac1 {[%emt 0:00:22]} Nc4 {[%emt 0:00:08]} 29. Rc2 {[%emt 0:00:59]} b5 {[%emt 0:00:34]} 30. Ra1 {[%emt 0:00:45]} b4 {[%emt 0:00:55]} 31. Rcc1 {[%emt 0:00:38]} b3 {[%emt 0:00:26]} 32. Rab1 {[%emt 0:00:41]} b2 {[%emt 0:00:17]} 33. Rc2 {[%emt 0:00:09]} Qd4 {[%emt 0:00:24]} 34. Rcxb2 {[%emt 0:01:05]} Rxb2 {[%emt 0:00:18]} 35. Re1 {[%emt 0:00:21]} Qf2 {[%emt 0:00:22]} 36. Ra1 {[%emt 0:00:55]} Ne3 {[%emt 0:00:20]} 37. h3 {[%emt 0:00:18]} Nxf1 {[%emt 0:00:09]} 38. Rxf1 {[%emt 0:00:10]} Qxg2# {[%emt 0:00:04]} 0-1

[Event "FIDE WYCC Girls U14 2023"]
[Site "Montesilvano"]
[Date "2023.11.17"]
[Round "5.31"]
[White "Mohd Afif, Ainul Mardhiah"]
[Black "Briem, Gudrun Fanney"]
[Result "1-0"]
[ECO "A14"]
[WhiteElo "1478"]
[BlackElo "1692"]
[Annotator "NA"]
[PlyCount "101"]
[EventDate "2023.11.13"]
[EventType "swiss"]
[EventCountry "ITA"]
[SourceTitle "playchess.com"]
[Source "ChessBase"]
[SourceQuality "1"]
[TimeControl "40/5400+30:1800+30"]

1. c4 {[%emt 0:00:09]} e6 {[%emt 0:00:10]} 2. g3 {[%emt 0:00:09]} d5 {[%emt 0:00:21]} 3. Bg2 {[%emt 0:00:08]} Nf6 {[%emt 0:00:28]} 4. Nf3 {[%emt 0:00:17]} Be7 {[%emt 0:00:53]} 5. O-O {[%emt 0:00:47]} O-O {[%emt 0:01:14]} 6. Qc2 {[%emt 0:03:31]} c5 {[%emt 0:05:56]} 7. d4 {[%emt 0:07:43]} cxd4 {[%emt 0:12:14]} 8. Rd1 {[%emt 0:10:19]} Qb6 {[%emt 0:03:07]} 9. Nxd4 {[%emt 0:06:59]} Nc6 {[%emt 0:11:08]} 10. e3 {[%emt 0:10:22]} Rd8 {[%emt 0:06:06]} 11. cxd5 {[%emt 0:02:56]} exd5 {[%emt 0:00:45]} 12. Nc3 {[%emt 0:00:58]} Nxd4 {[%emt 0:09:18]} 13. Rxd4 {[%emt 0:00:56]} Be6 {[%emt 0:01:14]} 14. Qd3 {[%emt 0:05:08]} Qc5 {[%emt 0:10:05]} 15. b4 {[%emt 0:07:04]} Qc6 {[%emt 0:04:02]} 16. Bb2 {[%emt 0:01:17]} Rac8 {[%emt 0:04:22]} 17. Rd1 {[%emt 0:03:14]} Qb6 {[%emt 0:03:31]} 18. a3 {[%emt 0:02:51]} a5 {[%emt 0:05:40]} 19. b5 {[%emt 0:06:17]} Qc5 {[%emt 0:05:08]} 20. h3 {[%emt 0:03:41]} h5 {[%emt 0:01:48]} 21. Rd2 {[%emt 0:06:33]} Qb6 {[%emt 0:06:29]} 22. Kh2 {[%emt 0:10:03]} Rd7 {[%emt 0:02:15]} 23. Qe2 {[%emt 0:04:58]} Qd8 {[%emt 0:02:51]} 24. Na2 {[%emt 0:02:47]} Bc5 {[%emt 0:02:26]} 25. Rf4 {[%emt 0:02:32]} Be7 {[%emt 0:00:41]} 26. Bxf6 {[%emt 0:00:51]} Bxf6 {[%emt 0:00:04]} 27. Qxh5 {[%emt 0:00:23]} g6 {[%emt 0:00:21]} 28. Qd1 {[%emt 0:00:18]} Be5 {[%emt 0:00:09]} 29. Ra4 {[%emt 0:00:33]} b6 {[%emt 0:00:48]} 30. Nc1 {[%emt 0:00:27]} Bf6 {[%emt 0:01:15]} 31. Ne2 {[%emt 0:00:20]} Rc5 {[%emt 0:00:26]} 32. Nd4 {[%emt 0:00:34]} Bxd4 {[%emt 0:00:39]} 33. Raxd4 {[%emt 0:00:32]} Rxb5 {[%emt 0:00:26]} 34. Rh4 {[%emt 0:00:24]} Qf6 {[%emt 0:00:26]} 35. Qe2 {[%emt 0:00:27]} Rb3 {[%emt 0:00:25]} 36. Rf4 {[%emt 0:01:05]} Qg5 {[%emt 0:00:28]} 37. a4 {[%emt 0:00:32]} Qe5 {[%emt 0:00:40]} 38. Rfd4 {[%emt 0:00:27]} Qf5 {[%emt 0:00:33]} 39. Qd1 {[%emt 0:00:28]} Ra3 {[%emt 0:00:25]} 40. Qc1 {[%emt 0:00:00]} Rb3 {[%emt 0:00:00]} 41. Qc8+ {[%emt 0:05:12]} Kg7 {[%emt 0:01:00]} 42. Rh4 {[%emt 0:00:31]} Kf6 {[%emt 0:01:16]} 43. Rf4 {[%emt 0:00:22]} Qxf4 {[%emt 0:00:12]} 44. exf4 {[%emt 0:00:21]} d4 {[%emt 0:00:20]} 45. Qh8+ {[%emt 0:00:23]} Ke7 {[%emt 0:00:31]} 46. Rxd4 {[%emt 0:00:29]} Rxd4 {[%emt 0:00:05]} 47. Qxd4 {[%emt 0:00:06]} Rb4 {[%emt 0:00:03]} 48. Qe3 {[%emt 0:00:45]} Kd6 {[%emt 0:03:14]} 49. Qe5+ {[%emt 0:00:36]} Ke7 {[%emt 0:00:58]} 50. Bd5 {[%emt 0:00:42]} Rxa4 {[%emt 0:00:35]} 51. Bxe6 {[%emt 0:00:51]} 1-0

[Event "FIDE WYCC Girls U14 2023"]
[Site "Montesilvano"]
[Date "2023.11.17"]
[Round "5.32"]
[White "Huang, Jolie"]
[Black "Pereira Garza, Cecilia"]
[Result "1-0"]
[ECO "D11"]
[WhiteElo "1680"]
[BlackElo "1479"]
[Annotator "NA RC"]
[PlyCount "33"]
[EventDate "2023.11.13"]
[EventType "swiss"]
[EventCountry "ITA"]
[SourceTitle "playchess.com"]
[Source "ChessBase"]
[SourceQuality "1"]
[TimeControl "40/5400+30:1800+30"]

1. d4 {[%emt 0:00:04]} d5 {[%emt 0:00:06]} 2. c4 {[%emt 0:00:08]} c6 {[%emt 0:00:06]} 3. Nf3 {[%emt 0:00:09]} Nf6 {[%emt 0:00:13]} 4. e3 {[%emt 0:00:22]} e6 {[%emt 0:00:27]} 5. Bd3 {[%emt 0:00:20]} dxc4 {[%emt 0:02:08]} 6. Bxc4 {[%emt 0:00:16]} b5 {[%emt 0:00:39]} 7. Bd3 {[%emt 0:00:11]} a6 {[%emt 0:01:03]} 8. O-O {[%emt 0:00:13]} Bd6 {[%emt 0:00:11]} 9. e4 {[%emt 0:03:03]} Bc7 {[%emt 0:00:19]} 10. e5 {[%emt 0:06:11]} Nd5 {[%emt 0:00:29]} 11. Ng5 {[%emt 0:00:28]} Qe7 {[%emt 0:08:25]} 12. Nc3 {[%emt 0:07:41]} Nxc3 {[%emt 0:01:33]} 13. bxc3 {[%emt 0:00:13]} Bb7 {[%emt 0:00:22]} 14. f4 {[%emt 0:02:18]} h6 {[%emt 0:03:46]} 15. Qh5 {[%emt 0:02:33]} Qf8 {[%emt 0:05:44]} 16. Nxf7 {[%emt 0:01:44]} Ke7 {[%emt 0:01:34]} 17. Ba3+ {[%emt 0:00:14]} 1-0

[Event "FIDE WYCC Girls U14 2023"]
[Site "Montesilvano"]
[Date "2023.11.17"]
[Round "5.33"]
[White "Michalska, Lena"]
[Black "Mrad, Anahid"]
[Result "1-0"]
[ECO "A11"]
[WhiteElo "1640"]
[BlackElo "1378"]
[Annotator "NA"]
[PlyCount "119"]
[EventDate "2023.11.13"]
[EventType "swiss"]
[EventCountry "ITA"]
[SourceTitle "playchess.com"]
[Source "ChessBase"]
[SourceQuality "1"]
[TimeControl "40/5400+30:1800+30"]

1. c4 {[%emt 0:00:01]} c6 {[%emt 0:00:16]} 2. Nf3 {[%emt 0:00:36]} d5 {[%emt 0:00:35]} 3. e3 {[%emt 0:00:07]} Nf6 {[%emt 0:00:43]} 4. b3 {[%emt 0:00:42]} Bf5 {[%emt 0:00:26]} 5. Bb2 {[%emt 0:00:25]} Nbd7 {[%emt 0:00:33]} 6. Be2 {[%emt 0:12:18]} e6 {[%emt 0:01:35]} 7. O-O {[%emt 0:00:17]} Bd6 {[%emt 0:01:22]} 8. d4 {[%emt 0:06:26]} c5 {[%emt 0:04:54]} 9. cxd5 {[%emt 0:04:26]} exd5 {[%emt 0:02:25]} 10. dxc5 {[%emt 0:00:07]} Bxc5 {[%emt 0:00:59]} 11. Nc3 {[%emt 0:01:25]} Nb6 {[%emt 0:01:49]} 12. Bb5+ {[%emt 0:00:24]} Bd7 {[%emt 0:00:51]} 13. Bxd7+ {[%emt 0:01:53]} Qxd7 {[%emt 0:00:33]} 14. Rc1 {[%emt 0:00:18]} Bd6 {[%emt 0:00:55]} 15. Qd3 {[%emt 0:02:51]} O-O {[%emt 0:01:01]} 16. Nb5 {[%emt 0:03:07]} Ne4 {[%emt 0:08:40]} 17. Nxd6 {[%emt 0:02:17]} Nxd6 {[%emt 0:01:06]} 18. Nd4 {[%emt 0:10:25]} Rfe8 {[%emt 0:03:52]} 19. Rfd1 {[%emt 0:02:15]} Re4 {[%emt 0:03:05]} 20. Ne2 {[%emt 0:01:51]} Nf5 {[%emt 0:01:56]} 21. Nf4 {[%emt 0:03:39]} Ne7 {[%emt 0:03:28]} 22. Bd4 {[%emt 0:14:03]} Rd8 {[%emt 0:02:24]} 23. Bxb6 {[%emt 0:00:18]} axb6 {[%emt 0:01:41]} 24. Nxd5 {[%emt 0:00:33]} Nxd5 {[%emt 0:09:04]} 25. Qxe4 {[%emt 0:00:26]} f5 {[%emt 0:03:58]} 26. Qc4 {[%emt 0:01:34]} b5 {[%emt 0:00:34]} 27. Qxd5+ {[%emt 0:02:56]} Qxd5 {[%emt 0:00:50]} 28. Rxd5 {[%emt 0:00:02]} Rxd5 {[%emt 0:00:29]} 29. g3 {[%emt 0:00:32]} h6 {[%emt 0:02:59]} 30. Rc7 {[%emt 0:00:19]} b6 {[%emt 0:01:54]} 31. Rc6 {[%emt 0:00:23]} Rd1+ {[%emt 0:00:58]} 32. Kg2 {[%emt 0:00:07]} Ra1 {[%emt 0:01:25]} 33. Rxb6 {[%emt 0:00:06]} Rxa2 {[%emt 0:01:38]} 34. Rxb5 {[%emt 0:00:07]} g6 {[%emt 0:00:26]} 35. h4 {[%emt 0:03:48]} Kf7 {[%emt 0:00:48]} 36. h5 {[%emt 0:00:44]} Rb2 {[%emt 0:01:25]} 37. Rb7+ {[%emt 0:00:16]} Kf6 {[%emt 0:00:29]} 38. Rb6+ {[%emt 0:00:06]} Kg7 {[%emt 0:01:00]} 39. Rxg6+ {[%emt 0:00:18]} Kh7 {[%emt 0:00:50]} 40. Rb6 {[%emt 0:00:00]} Kg7 {[%emt 0:00:00]} 41. b4 {[%emt 0:00:19]} Rb3 {[%emt 0:07:57]} 42. b5 {[%emt 0:00:30]} Rb4 {[%emt 0:01:28]} 43. Kf3 {[%emt 0:01:07]} Kh7 {[%emt 0:00:33]} 44. Rb7+ {[%emt 0:00:07]} Kg8 {[%emt 0:01:29]} 45. b6 {[%emt 0:00:05]} Kh8 {[%emt 0:01:19]} 46. Rf7 {[%emt 0:00:18]} Rxb6 {[%emt 0:01:30]} 47. Rxf5 {[%emt 0:00:02]} Kg7 {[%emt 0:05:35]} 48. g4 {[%emt 0:00:20]} Kh7 {[%emt 0:00:25]} 49. Kf4 {[%emt 0:00:38]} Rb4+ {[%emt 0:00:28]} 50. e4 {[%emt 0:00:12]} Kg7 {[%emt 0:02:15]} 51. f3 {[%emt 0:00:22]} Kh7 {[%emt 0:00:22]} 52. Rc5 {[%emt 0:00:05]} Kg7 {[%emt 0:00:15]} 53. Kf5 {[%emt 0:00:52]} Kh7 {[%emt 0:02:31]} 54. Rc7+ {[%emt 0:00:13]} Kg8 {[%emt 0:00:31]} 55. e5 {[%emt 0:00:15]} Rb6 {[%emt 0:00:18]} 56. e6 {[%emt 0:00:52]} Rb8 {[%emt 0:01:26]} 57. Kg6 {[%emt 0:00:19]} Re8 {[%emt 0:01:01]} 58. e7 {[%emt 0:00:15]} Ra8 {[%emt 0:00:58]} 59. Rc6 {[%emt 0:01:01]} Re8 {[%emt 0:00:17]} 60. Rd6 {[%emt 0:00:12]} 1-0